Cogmind - Beta 13 @@@ ROGUE MODE // 2024.04.05 @ 10:48:11 Player: SovietPaperclip Result: Self-destructed Performance ------------- Evolutions (2) 1000 Regions Visited (7) 1400 Robots Destroyed (117) 585 Value Destroyed (2962) 2962 Prototype IDs (2) 40 Alien Tech Used (0) 0 Bonus (156) 156 TOTAL SCORE: 6143 Bonus ------- High Alert Combat Kills 156 Cogmind --------- Core Integrity 336/550 Matter 29/300 Energy 100/100 System Corruption 0% Temperature Cool (0) Movement Core (100) Ox1 Location -8/Materials Parts ------- > --- POWER (1) -------- (None) > --- PROPULSION (5) --- (None) > --- UTILITY (3) ------ Hacking Suite > --- WEAPON (2) ------- Heavy Particle Cannon > --- INVENTORY (5) ---- Improved Flight Unit Cesium-ion Thruster Hacking Suite Hacking Suite Hacking Suite Peak State ------------ > --- POWER ------------ Heavy Ion Engine > --- PROPULSION ------- Light Treads Improved Treads Improved Treads Improved Treads Armored Treads > --- UTILITY ---------- High-capacity Storage Unit Hardened Medium Armor Plating Hacking Suite > --- WEAPON ----------- Heavy Particle Cannon Mini Grenade Launcher > --- INVENTORY -------- Nuclear Core Improved Flight Unit Improved Flight Unit Improved Flight Unit Improved Flight Unit Improved Flight Unit Cesium-ion Thruster Medium Storage Unit Structural Scanner Experimental Sensor Array ECM Suite Hacking Suite Hacking Suite Hacking Suite Hacking Suite Hacking Suite Hacking Suite Heavy Particle Cannon Grenade Launcher [Rating: 30] Favorites ----------- Power Ion Engine Engine Ion Engine Power Core Light Nuclear Core Propulsion Light Treads Treads Light Treads Utility High-capacity Storage Unit Device Improved Heat Sink Storage High-capacity Storage Unit Processor Targeting Computer Hackware Hacking Suite Protection Hardened Light Armor Plating Weapon Beam Cannon Energy Cannon Beam Cannon Ballistic Gun Assault Rifle Ballistic Cannon Light Cannon Launcher Mini Grenade Launcher Build | -11 -10 -10 -9 -9 -9 -8 -8 ------- Run | Yrd Mat Min Mat Min Exi Min Mat Slots Evolved 4 | . . . 2 . . . 2 Power . | . . . . . . . . Propulsion 3 | . . . 2 . . . 1 Utility 1 | . . . . . . . 1 Weapon . | . . . . . . . . Parts Attached 58 | 5 9 3 31 3 2 . 5 Power 7 | 1 1 . 5 . . . . Engine 6 | 1 1 . 4 . . . . Core 1 | . . . 1 . . . . Reactor . | . . . . . . . . Propulsion 17 | 2 . 1 13 . . . 1 Treads 17 | 2 . 1 13 . . . 1 Leg . | . . . . . . . . Wheel . | . . . . . . . . Hover . | . . . . . . . . Flight . | . . . . . . . . Utility 9 | 1 2 . 4 . . . 2 Device 2 | . . . 2 . . . . Storage 2 | 1 1 . . . . . . Processor 1 | . 1 . . . . . . Hackware 1 | . . . . . . . 1 Protection 3 | . . . 2 . . . 1 Artifact . | . . . . . . . . Weapon 25 | 1 6 2 9 3 2 . 2 Energy Gun . | . . . . . . . . Energy Cannon 12 | . 2 1 7 1 . . 1 Ballistic Gun 2 | 1 1 . . . . . . Ballistic Cannon 2 | . 2 . . . . . . Launcher 9 | . 1 1 2 2 2 . 1 Special Weapon . | . . . . . . . . Impact Weapon . | . . . . . . . . Slashing Weapon . | . . . . . . . . Piercing Weapon . | . . . . . . . . Special Melee Weapon . | . . . . . . . . Unidentified Prototypes 2 | . . . 2 . . . . Parts Lost 17 | . . 2 5 . . . 10 Power 2 | . . . 1 . . . 1 Propulsion 8 | . . 1 2 . . . 5 Utility 3 | . . . 1 . . . 2 Weapon 4 | . . 1 1 . . . 2 Highest Loss Streak 10 | . . 2 3 . . . 10 To Critical Strikes 1 | . . . 1 . . . . Average Slot Usage (%) 95 | . 91 100 96 100 99 100 90 Engine 10 | . 14 14 4 11 11 11 8 Core 1 | . . . 6 . . . . Treads 35 | . 28 28 42 44 44 44 38 Device 2 | . . . 2 11 11 11 2 Storage 12 | . 14 14 11 11 11 11 9 Processor 4 | . 7 14 . . . . . Protection 2 | . . . 8 . . . 6 Energy Cannon 16 | . 21 27 20 . . . 3 Ballistic Gun 1 | . 3 . . . . . . Launcher 5 | . . . 1 21 21 22 14 Naked Turns . | . . . . . . . . Heaviest Build 64 | 12 51 51 64 58 53 53 63 Greatest Support 109 | 40 40 40 86 86 86 86 109 Greatest Overweight (x) 2 | 2 1 1 1 . . . 1 Average Overweight (x) . | . . 1 . . . . . Largest Inventory Capacity 20 | 8 20 20 20 20 20 20 20 Average Capacity 19 | 7 19 20 20 20 20 20 19 Most Carried 20 | 4 17 17 20 20 20 20 20 Average Carried 15 | 1 11 15 16 19 19 19 19 Final Capacity 20 | 8 20 20 20 20 20 20 5 Final Carried 20 | 1 17 15 20 20 20 20 5 Class Distribution -------------------- 100% | Mutant Dominant Class ---------------- Mutant | -10/Materials Mutant | -10/Mines Mutant | -9/Materials Mutant | -9/Mines Mutant | -9/Exiles Mutant | -8/Mines Mutant | -8/Materials Resources | -11 -10 -10 -9 -9 -9 -8 -8 ----------- Run | Yrd Mat Min Mat Min Exi Min Mat Matter Collected 1332 | 192 334 80 404 51 . 77 194 Remotely . | . . . . . . . . Salvage Created 3338 | . 894 256 1341 59 . 83 705 Parts 213 | . 59 21 90 4 . 1 38 Haulers Intercepted 7 | . 2 . 5 . . . . Recyclers Shooed 2 | . 2 . . . . . . Parts Field Recycled . | . . . . . . . . Retrieved Matter . | . . . . . . . . Parts Self-Destructed . | . . . . . . . . Prevented . | . . . . . . . . Kills | -11 -10 -10 -9 -9 -9 -8 -8 ------- Run | Yrd Mat Min Mat Min Exi Min Mat Combat Hostiles Destroyed 76 | . 16 10 28 . . 3 19 Guns 3 | . 3 . . . . . . Cannons 41 | . 10 7 22 . . . 2 AOE 30 | . 2 3 6 . . 3 16 Classes Destroyed 12 | . 7 1 4 . . . . Worker 8 | . 3 . 2 1 . . 2 Builder 7 | . . . 2 . . . 5 Tunneler 3 | . . 1 2 . . . . Hauler 7 | . 2 . 5 . . . . Recycler 6 | . 2 . . 1 . . 3 Operator 6 | . 3 . 2 . . . 1 Watcher 4 | . 3 . 1 . . . . Swarmer 16 | . 3 6 4 . . . 3 Grunt 53 | . 13 4 18 . . 3 15 Brawler 1 | . . . 1 . . . . Duelist 1 | . . . 1 . . . . Sentry 5 | . . . 4 . . . 1 Best Kill Streak 8 | . 5 4 6 1 . 3 8 Combat Bots Only 5 | . 4 4 5 . . 3 4 Max Kills in Single Turn 5 | . 2 2 4 1 . 2 5 Gunslinging . | . . . . . . . . Exploded 3 | . 1 1 2 . . 2 3 Melee . | . . . . . . . . Uniques/NPCs Destroyed . | . . . . . . . . Combat | -11 -10 -10 -9 -9 -9 -8 -8 -------- Run | Yrd Mat Min Mat Min Exi Min Mat Hostile Shots Fired 340 | . 65 28 115 . . 3 129 Missed 85 | . 20 8 20 . . . 37 Damage Taken 3630 | . 537 251 1261 . . 117 1464 Core 553 | . 140 69 118 . . 12 214 Absorbed by Shields . | . . . . . . . . Core Remaining (%) 61 | 100 . 16 . . . 67 . Volleys Fired 215 | . 76 15 77 3 . 3 41 Largest 2 | . 2 2 2 2 . 2 2 Hottest 150 | . 120 120 150 75 . 60 75 Shots Fired 358 | . 134 26 137 4 . 7 50 Gun 38 | . 38 . . . . . . Cannon 265 | . 92 20 131 2 . . 20 Launcher 55 | . 4 6 6 2 . 7 30 Special . | . . . . . . . . Kinetic 50 | . 50 . . . . . . Thermal 253 | . 80 20 131 2 . . 20 Explosive 55 | . 4 6 6 2 . 7 30 Electromagnetic . | . . . . . . . . Robot Hit Streak 11 | . 11 10 11 2 . . 6 Robot Miss Streak 4 | . 3 2 4 . . . 2 Penetration Max . | . . . . . . . . Secondary Targets . | . . . . . . . . Shots Hit Robots 192 | . 81 14 68 2 . . 27 Core Hits 168 | . 38 11 47 2 . 9 61 Critical Kills 2 | . 1 . . . . . 1 Critical Parts Destroyed . | . . . . . . . . Critical Strikes 3 | . 2 . . . . . 1 Meltdown 2 | . 1 . . . . . 1 Blast 1 | . 1 . . . . . . Melee Attacks . | . . . . . . . . Impact . | . . . . . . . . Slashing . | . . . . . . . . Piercing . | . . . . . . . . Sneak Attacks . | . . . . . . . . Combat Hostiles . | . . . . . . . . Follow-up Attacks . | . . . . . . . . Damage Inflicted 8016 | . 1419 478 2414 139 . 284 3282 Guns 305 | . 305 . . . . . . Cannons 3502 | . 1040 245 1842 50 . . 325 Explosions 4209 | . 74 233 572 89 . 284 2957 Melee . | . . . . . . . . Ramming . | . . . . . . . . Kinetic 423 | . 423 . . . . . . Thermal 3542 | . 922 245 1842 50 . . 483 Explosive 4051 | . 74 233 572 89 . 284 2799 Electromagnetic . | . . . . . . . . Impact . | . . . . . . . . Slashing . | . . . . . . . . Piercing . | . . . . . . . . Highest Corruption 16 | . . . 16 16 16 16 . Average Corruption 15 | . . . 14 16 16 16 . Corruption Purged . | . . . . . . . . Corruption Blocked . | . . . . . . . . Effects 68 | . . . 17 24 9 18 . Message Errors 14 | . . . 3 3 3 5 . Matter Fused 19 | . . . 3 8 2 6 . Heat Flow Errors 7 | . . . 2 2 3 . . Energy Discharges 11 | . . . 2 4 1 4 . Data Loss (minor) 8 | . . . 1 5 . 2 . Data Loss (major) 4 | . . . 2 2 . . . Misfires 1 | . . . . . . 1 . Alerts 1 | . . . 1 . . . . Misdirections 2 | . . . 2 . . . . Weapon Failures 1 | . . . 1 . . . . Overload Shots . | . . . . . . . . Overflow Damage 118 | . 13 33 17 . . . 55 Projectiles 35 | . 13 15 2 . . . 5 Explosions 83 | . . 18 15 . . . 50 Melee . | . . . . . . . . Knockbacks 4 | . 4 . . . . . . Impact . | . . . . . . . . Kinetic 2 | . 2 . . . . . . Secondary 2 | . 2 . . . . . . Self-Inflicted Damage 485 | . 21 78 24 . . 69 293 Shots 19 | . 1 3 1 . . 2 12 Rammed . | . . . . . . . . Targets Rammed . | . . . . . . . . Kicked . | . . . . . . . . Crushed . | . . . . . . . . Highest Temperature 599 | . 378 189 599 255 241 . 290 Average Temperature 123 | . 87 76 156 96 97 . 87 Received Heat Transfer 1290 | . 216 9 498 . . 27 540 Effects 21 | . 1 . 20 . . . . Shutdowns 2 | . . . 2 . . . . Energy Bleed 5 | . 1 . 4 . . . . Interference 3 | . . . 3 . . . . Matter Decay 2 | . . . 2 . . . . Short Circuit 2 | . . . 2 . . . . Damage (minor) 1 | . . . 1 . . . . Damage (major) 6 | . . . 6 . . . . Siege Activations . | . . . . . . . . Robots Corrupted . | . . . . . . . . Combat Hostiles . | . . . . . . . . Parts Fried . | . . . . . . . . Impact Corruptions . | . . . . . . . . Robots Melted 2 | . 1 . . . . . 1 Combat Hostiles 2 | . 1 . . . . . 1 Parts Melted 14 | . 5 2 3 . . . 4 Heat Transferred 5872 | . 1961 518 2738 74 . . 581 Parts Sabotaged . | . . . . . . . . Parts Stolen . | . . . . . . . . Parts Stripped . | . . . . . . . . Power Chain Reactions . | . . . . . . . . Alert | -11 -10 -10 -9 -9 -9 -8 -8 ------- Run | Yrd Mat Min Mat Min Exi Min Mat Peak Influence 645 | . 216 234 603 254 . 106 645 Initial 234 | . . 13 19 234 . . 40 Average 129 | . 52 74 217 180 . 93 320 Maximum Alert Level 2 | . 1 1 2 1 . . 2 Low Security (%) 73 | 100 97 84 55 29 . 100 23 Level 1 20 | . 2 15 31 70 . . 37 Level 2 5 | . . . 12 . . . 38 Level 3 . | . . . . . . . . Level 4 . | . . . . . . . . Level 5 . | . . . . . . . . High Security . | . . . . . . . . Max Security . | . . . . . . . . Squads Dispatched 15 | . 5 . 4 . . . 6 Investigation 4 | . 2 . 1 . . . 1 Extermination . | . . . . . . . . Reinforcement 9 | . 3 . 3 . . . 3 Assault 1 | . . . . . . . 1 Garrison 1 | . . . . . . . 1 Intercept . | . . . . . . . . Searches Triggered . | . . . . . . . . Construction Impeded 3 | . . . 1 . . . 2 Haulers Reinforced . | . . . . . . . . Active Scanning Responses . | . . . . . . . . Cargo Convoy Interrupts . | . . . . . . . . Stealth | -11 -10 -10 -9 -9 -9 -8 -8 --------- Run | Yrd Mat Min Mat Min Exi Min Mat Distress Signals 7 | . . . 5 . . . 2 Communications Jammed . | . . . . . . . . Distress Signals . | . . . . . . . . Times Spotted 107 | . 21 9 48 . . 1 28 Peak Tracking Total 10 | . 3 4 6 . . 1 10 Tactical Retreats . | . . . . . . . . Traps | -11 -10 -10 -9 -9 -9 -8 -8 ------- Run | Yrd Mat Min Mat Min Exi Min Mat Traps Triggered 4 | . 3 . 1 . . . . Indirectly . | . . . . . . . . Trap Hack Attempts . | . . . . . . . . Triggered . | . . . . . . . . Disarmed . | . . . . . . . . Reprogrammed . | . . . . . . . . Reused . | . . . . . . . . Traps Extracted . | . . . . . . . . Installed . | . . . . . . . . Triggered . | . . . . . . . . Machines | -11 -10 -10 -9 -9 -9 -8 -8 ---------- Run | Yrd Mat Min Mat Min Exi Min Mat Machines Disabled 10 | . 1 . 5 . . . 4 Max in Single Turn 2 | . 1 . 1 . . . 2 Garrison Access 1 | . . . . . . . 1 Machines Repaired . | . . . . . . . . Machines Dismantled . | . . . . . . . . Machines Sabotaged . | . . . . . . . . Overloaded Fab Kills . | . . . . . . . . Hacking | -11 -10 -10 -9 -9 -9 -8 -8 --------- Run | Yrd Mat Min Mat Min Exi Min Mat Machines Accessed 8 | . 2 . 4 . . . 2 Terminals 6 | . 2 . 4 . . . . Fabricators . | . . . . . . . . Repair Stations . | . . . . . . . . Recycling Units . | . . . . . . . . Scanalyzers 1 | . . . . . . . 1 Garrison Access 1 | . . . . . . . 1 Total Hacks 13 | . 4 . 4 . . . 5 Successful 10 | . 3 . 4 . . . 3 Failed 3 | . 1 . . . . . 2 Catastrophic . | . . . . . . . . Database Lockouts . | . . . . . . . . Manual . | . . . . . . . . Terminals 8 | . 4 . 4 . . . . Fabricators . | . . . . . . . . Repair Stations . | . . . . . . . . Recycling Units . | . . . . . . . . Scanalyzers 3 | . . . . . . . 3 Garrison Access 2 | . . . . . . . 2 Terminal Hacks 7 | . 3 . 4 . . . . Emergency Access Points 1 | . . . 1 . . . . Terminal Index 1 | . . . 1 . . . . Alert Level 1 | . 1 . . . . . . Unreport Threat 2 | . 2 . . . . . . Hauler Manifests 1 | . . . 1 . . . . Registered Components 1 | . . . 1 . . . . Fabricator Hacks . | . . . . . . . . Repair Station Hacks . | . . . . . . . . Recycling Unit Hacks . | . . . . . . . . Scanalyzer 2 | . . . . . . . 2 Insert Component 1 | . . . . . . . 1 Analyze 1 | . . . . . . . 1 Garrison Access Hacks 1 | . . . . . . . 1 Seal Access 1 | . . . . . . . 1 Unauthorized Hacks . | . . . . . . . . Terminals . | . . . . . . . . Fabricators . | . . . . . . . . Repair Stations . | . . . . . . . . Recycling Units . | . . . . . . . . Scanalyzers . | . . . . . . . . Garrison Access . | . . . . . . . . Data Cores Recovered . | . . . . . . . . Used . | . . . . . . . . Hacking Detections 2 | . 1 . . . . . 1 Full Trace Events 1 | . . . . . . . 1 Feedback Events . | . . . . . . . . Feedback Blocked . | . . . . . . . . Robot Schematics Acquired . | . . . . . . . . Robots Built . | . . . . . . . . Authchips . | . . . . . . . . Time . | . . . . . . . . Total Robot Build Rating . | . . . . . . . . Part Schematics Acquired 1 | . . . . . . . 1 Parts Built . | . . . . . . . . Authchips . | . . . . . . . . Time . | . . . . . . . . Total Part Build Rating . | . . . . . . . . Parts Repaired . | . . . . . . . . Time . | . . . . . . . . Parts Recycled . | . . . . . . . . Recycled Matter . | . . . . . . . . Retrieved Matter . | . . . . . . . . Retrieved Components . | . . . . . . . . Parts Scanalyzed 1 | . . . . . . . 1 Part Schematics Acquired 1 | . . . . . . . 1 Parts Damaged . | . . . . . . . . Bothacking | -11 -10 -10 -9 -9 -9 -8 -8 ------------ Run | Yrd Mat Min Mat Min Exi Min Mat Used RIF Installer . | . . . . . . . . Robots Hacked . | . . . . . . . . Non-combat . | . . . . . . . . Combat . | . . . . . . . . Robot Hacks Applied . | . . . . . . . . Relay Couplers Released . | . . . . . . . . Fabnet Peak Effective % . | . . . . . . . . Robots Rewired . | . . . . . . . . Allies Hacked . | . . . . . . . . Hacks Repelled . | . . . . . . . . Allies | -11 -10 -10 -9 -9 -9 -8 -8 -------- Run | Yrd Mat Min Mat Min Exi Min Mat Total Allies . | . . . . . . . . Largest Group . | . . . . . . . . Highest-Rated Group . | . . . . . . . . Highest-Rated Ally . | . . . . . . . . Total Orders . | . . . . . . . . Ally Attacks . | . . . . . . . . Total Damage . | . . . . . . . . Kills . | . . . . . . . . Allies Corrupted . | . . . . . . . . Allies Melted . | . . . . . . . . Intel | -11 -10 -10 -9 -9 -9 -8 -8 ------- Run | Yrd Mat Min Mat Min Exi Min Mat Robot Analysis Total . | . . . . . . . . Derelict Logs Recovered 3 | . . 1 . 2 . . . Drone Launches . | . . . . . . . . Drone Recoveries . | . . . . . . . . Exploration | -11 -10 -10 -9 -9 -9 -8 -8 ------------- Run | Yrd Mat Min Mat Min Exi Min Mat Turns Passed 6391 | 56 2190 1041 1517 571 218 372 426 Spaces Moved 2821 | 33 798 415 680 344 131 224 196 Core 14 | 14 . . . . . . . Treads 2807 | 19 798 415 680 344 131 224 196 Legs . | . . . . . . . . Wheels . | . . . . . . . . Hover . | . . . . . . . . Flight . | . . . . . . . . Fastest Speed 50 | 50 160 240 160 162 162 162 160 Average Speed 195 | 140 235 240 166 162 162 162 165 Slowest Speed 250 | 160 240 240 250 162 162 162 240 Overloaded Moves . | . . . . . . . . Propulsion Burnouts . | . . . . . . . . Robots Hopped . | . . . . . . . . Cave-ins Triggered . | . . . . . . . . Exploration Rate (%) 58 | 3 91 84 66 79 49 70 23 Regions Visited 7 Branch Regions 4 Pre-discovered Areas 2 | . . 1 . 1 . . . Known Exits Taken . | . . . . . . . . Unknown Exits Taken 7 | 1 1 1 1 1 1 1 . Scrap Searched 7 | . . 3 . 2 . 2 . Spaces Dug . | . . . . . . . . Terrain Destroyed 434 | . 27 50 93 19 . 66 179 Melee . | . . . . . . . . Projectile 45 | . . . 40 . . . 5 AOE 389 | . 27 50 53 19 . 66 174 Terrain Rammed . | . . . . . . . . Walls Destroyed . | . . . . . . . . Machines Disabled . | . . . . . . . . Actions | -11 -10 -10 -9 -9 -9 -8 -8 --------- Run | Yrd Mat Min Mat Min Exi Min Mat Total 3350 | 43 977 434 929 353 138 228 248 Wait 155 | . 65 2 88 . . . . Move 2814 | 32 797 414 679 343 130 223 196 Hop . | . . . . . . . . Pick Up 73 | 6 24 . 33 2 3 1 4 Fast Attach . | . . . . . . . . Attach 35 | 5 7 2 15 . 2 . 4 Detach . | . . . . . . . . Swap 23 | . 2 1 16 3 . . 1 Drop 35 | . 6 . 21 2 3 1 2 Fire 215 | . 76 15 77 3 . 3 41 Melee . | . . . . . . . . Ram . | . . . . . . . . Kick . | . . . . . . . . Crush . | . . . . . . . . Escape Stasis . | . . . . . . . . Rewire . | . . . . . . . . Trap . | . . . . . . . . Miscellaneous . | . . . . . . . . Route ------- -11/Scrapyard -10/Materials (discovered 4 exits: *Mat x3 / [*Min]) -10/Mines -9/Materials (discovered 5 exits: *Mat x3 / [*Min] / [*Sto]) -9/Mines (discovered 2 exits: [*Exi] / [*Zio]) -9/Exiles -8/Mines -8/Materials History --------- Turn | Location | Event 9 | -11/Scrapyard | Discovered new exit (range 16) 57 | -11/Scrapyard | Entered Materials 278 | -10/Materials | Discovered new exit (range 7) 306 | -10/Materials | Build established: Mutant 941 | -10/Materials | Discovered new exit (range 6) 1458 | -10/Materials | Discovered new exit (range 8) 2083 | -10/Materials | Discovered new exit (range 15) 2116 | -10/Materials | Core integrity fell below 50% 2247 | -10/Materials | Entered Mines 2268 | -10/Mines | Learned location of Zion (-7) 3147 | -10/Mines | Core integrity fell below 20% 3266 | -10/Mines | Discovered new exit (range 11) 3288 | -10/Mines | Entered Materials 3288 | -9/Materials | Evolved 2 slots: Propulsion x2 3627 | -9/Materials | Discovered new exit (range 14) 3720 | -9/Materials | Discovered new exit (range 16) 3892 | -9/Materials | Discovered new exit (range 10) 4494 | -9/Materials | System corruption reached 10% 4524 | -9/Materials | Lost 3 parts (1p1n1u) 4545 | -9/Materials | Discovered new exit (range 16) 4781 | -9/Materials | Discovered new exit (range 16) 4805 | -9/Materials | Entered Mines 4806 | -9/Mines | Assembled infested the area 4815 | -9/Mines | Learned Materials security intel 4857 | -9/Mines | YI-UF0 nonchalantly dropped a Grenade Launcher on the ground 4980 | -9/Mines | Learned location of Storage (-9) 5177 | -9/Mines | A Derelict revealed a hidden shortcut to a safe place 5231 | -9/Mines | Learned Materials interactive machine intel 5262 | -9/Mines | Found a damaged Exp. Sensor Array with a note attached 5266 | -9/Mines | Found Prototype Device 5368 | -9/Mines | Deemed a non-threat by the Exiles lab entrance 5368 | -9/Mines | Discovered new exit (range 5) 5376 | -9/Mines | Entered Exiles 5414 | -9/Exiles | Met 8R-AWN 5443 | -9/Exiles | Met EX-HEX 5521 | -9/Exiles | Met EX-DEC 5576 | -9/Exiles | Discovered new exit (range 14) 5594 | -9/Exiles | Entered Mines 5955 | -8/Mines | Discovered new exit (range 8) 5966 | -8/Mines | Entered Materials 5966 | -8/Materials | Evolved 2 slots: Propulsion x1, Utility x1 5968 | -8/Materials | Loaded intel: 19 interactive machine locations 6038 | -8/Materials | Garrison activated, responded to threat 6366 | -8/Materials | First assault squad dispatched 6392 | -8/Materials | Self-destructed Last Messages --------------- 06375_ C-30 ARC bursts open, deploying its payload. 06375_ G-50 Soldier unfolds itself. 06375_ G-47 Trooper unfolds itself. 06375_ I-25 Savior unfolds itself. 06377_ K-01 Serf collects debris. 06383_ Imp. Treads destroyed. 06384_ K-01 Serf collects debris. 06385_ G-47 Trooper destroyed. 06385_ S-10 Pest destroyed. 06385_ Matter Pump disabled. 06385_ G-47 Trooper destroyed. 06385_ K-01 Serf destroyed. 06386_ Mni. Grenade Launcher destroyed. 06388_ S-10 Pest destroyed. 06388_ Hrd. Medium Armor Plating destroyed. 06389_ Imp. Treads destroyed. 06390_ Hcp. Storage Unit destroyed. 06390_ Destroyed Hcp. Storage Unit. 06390_ Grenade Launcher destroyed. Map ----- +----------------------------------------------------+ | ?????????????????????????????????????????????????? | | ?????????????????????????????????????????????????? | | ?????????????????????????????????????????????????? | | ?????????????????????????????????????????????????? | | ?????????????????????????????????????????????????? | | ?????????????????????????????????????????????????? | | ?????????????????????????????????????????????????? | | ?????????????????????????????????????????????????? | | ?????????????????????????????????????????????????? | | ?????????????????????????????????????????????????? | | ?????????????????????????????"T"?????????????????? | | ?????????????????????????????????????????????????? | | ?????????????????????????????????????????????????? | | ???????????????? ????????????????????????????????? | | ?????????????? ??????????????????? #???????????? | | ?????????????? [?????????????????? #???????????? | | ????????????? [!???????????????? #???????????? | | ????????????? ?????????????? #???????????? | | ???????????? ############## #???????????? | | ???????????? ^^ #???????????? | | ????????????? a #???????????? | | ??????????????# % #???????????? | | ??????????????# !!/ " " = * ??????????????? | | ??????????????# !/[ !" #????????????????? | | ??????????????# !/ !!"! g i!##########???????? | | ??????????????# !!@==gg[ !#???????? | | ??????????????# !!=* g % ????????? | | ??????????????# """ "] ????????? | | ??????????????# """ """ """ """?????????? | | ??????????????# """ "%" + """ ""??????????? | | ??????????????# % # """ ""??????????? | | ??????????????# *m # ?????????? | | ????????????????#########;; = ##? ????????? | | ????????????????????????##; #??########????????? | | ?????????????????????????## #??????????????????? | | ??????????????????????????# #??????????????????? | | ??????????????????????????# #??????????????????? | | ??????????????????????????# #??????????????????? | | ??"""??????????????######?# #?######???????????? | | ???R"??????????????#= ?# #? """ #???????????? | | ??"""??????????????# # # """ #???????????? | | ???????????????????# """ # # """ #???????????? | | ???????????????????# """ + / #??????????+? | | ???????????????????# """ # # +?????????? | | ???????????????????# " # #?????????? | | ???????????????????######## ########???????? | | ?????????????????######### ########???????# " | | ?????????? ##+####?# " | | ?????????????????######### %T + ?# " | | ??????????"??????????????# # ?+ | +----------------------------------------------------+ Best States ------------- Heat Dissipation 45 Energy Generation 14 Energy Capacity 280 Matter Stores 300 Matter Capacity 300 Sight Range 16 Terrain Scan Density 10 Armor Coverage 225 Evasion (%) 40 Targeting Accuracy 5 Recoil Reduction 5 Offensive Hacking 10 Item Schematics ----------------- Hacking Suite | -8/Materials | Scanalyzed Robot Schematics ------------------ None Fabricated ------------ Nothing Alien Tech Used ----------------- None Achievements -------------- None Challenges ------------ None Game ------ Seed AntimissileGravmagShifter Manual? 0 Play Time 00:40:39 Cumulative 38.8 hours Start 2024.04.05 @ 10:07:47 End 2024.04.05 @ 10:48:11 Sessions 1 Manual Loads 0 Difficulty Rogue Special Mode None Game No. 54 Rogue 54 Adventurer 0 Explorer 0 Win Type - Total 1 Types 1/0/0/0/0/0/0/0/0 Lore% 21 Gallery% 27 Achievement% 27 Wizard Run 0 Options --------- Layout 1 ASCII 0 Keyboard 0 Movement Mouse Keybinds 0 Fullscreen 2 Font 32/Smallcaps Map View 50x40 Zoom Use 0% Tactical HUD 1 Map Filters NONE Filters NONE Steam 1 RUN: 563a6759-b5dd-487c-856a-c80f77a4dc9b